bitfinex/quotes_ETHUSD_20220118
["timestamp","ask_amount","ask_price","bid_price","bid_amount"]
[1642498926707,0.00113685,3167.7,3167.6,0.4262]
[1642498926908,0.00113685,3167.7,3167.6,0.1262]
[1642498927209,0.00113685,3167.7,3167.6,2.82425525]
[1642498927407,0.00113685,3167.7,3167.6,2.69805525]
[1642498927805,4.50113685,3167.7,3167.6,2.69805525]
[1642498928010,4.80113685,3167.7,3167.6,5.525e-05]
[1642498928209,4.80113685,3167.7,3167.4,1.52777119]
[1642498928210,5.35,3167.6,3167.4,1.52777119]
[1642498928410,4.00990585,3167.5,3167.4,1.52777119]
[1642498928652,2.25990585,3167.5,3167.4,1.52777119]
[1642498928850,2.25990585,3167.5,3167.3,0.00265616]
[1642498929149,1.25990585,3167.5,3167.3,0.00265616]
[1642498929650,0.91569,3167.5,3167.3,0.00265616]
[1642498930050,0.1262,3167.5,3167.3,0.00265616]
[1642498931254,0.1262,3167.6,3167.3,0.00265616]
[1642498932908,0.16920833,3167.5,3167.3,0.00265616]
[1642498933113,6.26577,3167.4,3167.3,0.00265616]
[1642498933315,6.71977,3167.4,3167.3,0.00265616]
[1642498933516,7.71977,3167.4,3167.3,0.00379301]
[1642498935416,7.26577,3167.4,3167.3,0.00379301]
[1642498935816,7.13957,3167.4,3167.3,0.00379301]
[1642498940706,7.13957,3167.4,3166.2,1.52777119]
[1642498940903,1.1263,3167.3,3166.2,1.52777119]
[1642498941099,0.01036486,3166.9,3166.3,0.00568423]
[1642498941300,0.5803,3166.8,3166.3,0.00568423]
[1642498941501,1.65331623,3166.7,3166.3,0.00568423]
[1642498941702,0.5803,3166.6,3166.3,0.00568423]
[1642498941998,0.00771919,3166.3,3166.1,0.1262]
[1642498942201,3.1,3166.2,3166.1,0.1262]
[1642498942599,4.1,3166.2,3166.1,0.12733685]
[1642498942797,4.2263,3166.2,3166.1,0.12733685]
[1642498943652,6.4763,3166.2,3166.1,0.12733685]
[1642498944452,6.48515056,3166.2,3166.1,0.12733685]
[1642498944652,6.93915056,3166.2,3166.1,0.12733685]
[1642498945251,6.81285056,3166.2,3166.1,0.12733685]
[1642498945452,7.11285056,3166.2,3166.1,0.12733685]
[1642498945854,4.86285056,3166.2,3166.1,0.12733685]
[1642498947507,0.78987,3166.0,3165.6,0.00333001]
[1642498947709,0.78987,3166.0,3165.6,3.001e-05]
[1642498947710,0.0287138,3165.8,3165.6,3.001e-05]
[1642498947909,5.4763,3165.7,3165.6,3.001e-05]
[1642498948105,0.03183832,3165.5,3165.1,0.00318153]
[1642498948306,0.454,3165.4,3165.1,0.00318153]
[1642498948505,6.6717168,3165.2,3165.1,0.00318153]
[1642498948712,6.6717168,3165.2,3164.7,3.05554239]
[1642498948713,5.35,3165.0,3164.7,3.05554239]
[1642498948911,5.9303,3164.9,3164.5,3.05554239]
[1642498949110,1.0,3164.8,3164.5,3.05554239]
[1642498949312,1.908,3164.8,3164.6,0.00852635]
[1642498949615,6.06288807,3164.7,3164.6,0.00852635]
[1642498950010,7.36288807,3164.7,3164.6,0.00852635]
[1642498950211,6.65,3164.7,3164.6,0.00852635]
[1642498950411,0.5803,3164.9,3164.6,0.00852635]
[1642498950412,0.79027,3164.8,3164.6,0.00852635]
[1642498951846,0.79027,3164.8,3164.7,2.66557478]
[1642498952251,0.79007,3165.0,3164.7,2.6735327]
[1642498952646,0.79007,3165.0,3164.8,0.0073895]
[1642498953249,1.09007,3165.0,3164.8,0.0073895]
[1642498953654,2.09007,3165.0,3164.8,0.0073895]
[1642498953852,1.09007,3165.0,3164.8,0.0073895]
[1642498954055,1.09007,3165.0,3164.9,2.66557478]
[1642498954452,5.69651621,3165.0,3164.9,2.67239586]
[1642498954653,6.82281621,3165.0,3164.9,2.67239586]
[1642498955099,6.69651621,3165.0,3164.9,0.00682108]
[1642498955498,6.69651621,3165.0,3163.9,1.11338392]
[1642498955704,1.33268273,3164.1,3164.0,0.01193689]
[1642498956400,1.33268273,3164.1,3163.9,0.01250531]
[1642498957002,1.33268273,3164.1,3164.0,2.69942244]
[1642498957405,1.33268273,3164.1,3164.0,2.71135933]
[1642498958003,1.33268273,3164.1,3164.0,0.01193689]
[1642498958405,1.33268273,3164.1,3163.8,0.01307374]
[1642498959054,1.33268273,3164.1,3163.7,0.01364216]
[1642498959355,1.34140079,3164.1,3163.7,0.01364216]
[1642498960754,1.34140079,3164.1,3163.8,1.0]
[1642498961155,1.34140079,3164.1,3163.9,0.01250531]
[1642498963601,5.4764,3164.0,3163.9,0.01250531]
[1642498964198,5.4764,3164.0,3163.4,0.01534743]
[1642498964199,0.00326076,3163.9,3163.4,0.01534743]
[1642498964399,0.00326076,3163.9,3162.7,3.7566]
[1642498964400,0.00326076,3163.9,3163.2,0.01648428]
[1642498964601,0.00446944,3164.0,3163.2,0.01648428]
[1642498965205,0.79034,3163.9,3163.2,0.01648428]
[1642498965402,0.1264,3163.8,3163.2,0.01648428]
[1642498966247,0.1264,3163.9,3163.2,0.01648428]
[1642498966650,0.91673,3163.9,3163.1,0.0170527]
[1642498966848,0.91673,3163.9,3162.8,0.01875797]
[1642498967047,0.91673,3163.9,3162.8,0.31875797]
[1642498967449,0.91673,3163.9,3162.9,0.01818955]
[1642498967751,0.91673,3163.9,3162.9,1.2739209]
[1642498968148,0.91673,3163.9,3163.0,0.01762112]
[1642498968350,1.51269842,3163.1,3163.0,0.01762112]
[1642498968751,1.51269842,3163.1,3162.9,0.01818955]
[1642498969354,1.51269842,3163.1,3162.7,0.01932639]
[1642498970400,0.1264,3163.7,3162.7,3.23071244]
[1642498970596,0.00231574,3163.8,3162.8,0.15377637]
[1642498970795,0.00231574,3163.8,3163.1,0.01264213]
[1642498970996,0.00231574,3163.8,3163.2,0.1264]
[1642498971194,0.00231574,3163.8,3163.2,0.14288428]
[1642498971394,0.00231574,3163.8,3163.3,0.01591585]
[1642498971894,1.19796693,3163.7,3163.4,1.2507995]
[1642498972095,1.19796693,3163.7,3163.4,1.8507995]
[1642498972295,1.19796693,3163.7,3163.5,0.01477901]
[1642498973295,1.19796693,3163.7,3163.5,3.15239255]
[1642498973560,1.19796693,3163.7,3163.5,0.01477901]
[1642498973850,0.00231574,3163.8,3163.6,0.01421058]
[1642498974456,0.00215127,3163.7,3163.6,0.01421058]
[1642498975655,0.00215127,3163.7,3163.5,0.01477901]
[1642498976356,0.0120052,3163.7,3163.5,0.01477901]
[1642498976555,0.00215127,3163.7,3163.3,0.01591585]
[1642498976755,0.00215127,3163.7,3163.3,1.38888467]
[1642498977156,0.00215127,3163.7,3163.4,0.01534743]
[1642498977797,0.1264,3163.6,3163.4,0.01534743]
[1642498977999,0.1264,3163.6,3163.3,1.01591585]
[1642498978299,0.1264,3163.6,3163.4,0.01534743]
[1642498978904,0.1264,3163.6,3163.4,3.43152405]
[1642498979102,0.00215127,3163.7,3163.4,0.01534743]
[1642498979302,0.00215127,3163.7,3163.5,0.01477901]
[1642498979505,0.00421669,3163.6,3163.4,0.01534743]
[1642498979904,0.00421669,3163.6,3163.4,1.01534743]
[1642498980103,0.00421669,3163.6,3163.5,1.32342248]
[1642498980303,0.00421669,3163.6,3163.5,1.33820149]
[1642498980903,0.00421669,3163.6,3163.5,2.33820149]
[1642498981750,0.00421669,3163.6,3163.5,1.33820149]
[1642498981953,0.00421669,3163.6,3163.5,0.01477901]
[1642498982554,3.93061669,3163.6,3163.5,0.01477901]
[1642498982754,3.93061669,3163.6,3163.2,0.01648428]
[1642498982957,0.02730733,3163.4,3163.2,0.01648428]
[1642498983163,0.00421669,3163.6,3162.8,0.01875797]
[1642498983164,0.1264,3163.3,3162.8,0.01875797]
[1642498983359,1.47711397,3163.3,3162.8,0.01875797]
[1642498983559,1.47711397,3163.3,3162.8,3.43493459]
[1642498983761,0.00421669,3163.6,3162.8,3.43493459]
[1642498983960,0.00421669,3163.6,3162.9,1.01818955]
[1642498984159,0.00421669,3163.6,3163.3,1.48290566]
[1642498984562,0.00206549,3163.4,3163.3,1.48290566]
[1642498984803,6.549e-05,3163.4,3163.3,2.97916904]
[1642498985004,6.549e-05,3163.4,3163.3,3.74473858]
[1642498985202,6.549e-05,3163.4,3163.3,4.32513858]
[1642498985603,6.549e-05,3163.4,3163.3,4.02513858]
[1642498985817,6.549e-05,3163.4,3163.3,6.59051381]
[1642498986910,6.549e-05,3163.4,3163.3,7.59051381]
[1642498987611,0.1264,3164.6,3163.4,0.00073451]
[1642498987812,0.1264,3164.6,3163.4,0.79078451]
[1642498988012,0.1264,3164.6,3163.5,3.29758128]
[1642498988217,1.61965346,3164.9,3163.6,0.454]
[1642498988419,0.34206424,3164.5,3163.7,3.41617662]
[1642498988677,0.34206424,3164.5,3163.9,1.17289522]
[1642498988878,0.34206424,3164.5,3164.1,0.78981]
[1642498989077,0.34206424,3164.5,3164.4,2.14667011]
[1642498989277,1.61965346,3164.9,3164.4,2.44667011]
[1642498989478,0.00220471,3164.5,3164.4,2.45633331]
[1642498989679,0.00220471,3164.5,3164.4,2.44667011]
[1642498990081,0.00207122,3164.8,3164.5,3.85]
[1642498990383,3.23814435,3165.8,3165.1,2.7]
[1642498990582,3.23814435,3165.8,3165.2,3.98752953]
[1642498990780,3.23814435,3165.8,3165.2,5.26462444]
[1642498990981,7.28490254,3166.2,3165.3,0.00454738]
[1642498991180,3.36444435,3166.2,3165.3,0.00454738]
[1642498991587,1.41986629,3165.9,3165.3,0.00454738]
[1642498991780,3.23814435,3166.2,3165.5,1.36976307]
[1642498991982,3.23814435,3166.2,3165.7,1.0]
[1642498992180,3.23814435,3166.2,3165.8,3.1105323]
[1642498992403,3.23814435,3166.2,3165.8,0.00170527]
[1642498992602,3.23814435,3166.2,3165.9,0.00113684]
[1642498992803,1.29636432,3165.9,3165.8,0.00170527]
[1642498993406,1.29636432,3165.9,3165.7,0.00227369]
[1642498993810,1.29636432,3165.9,3165.7,1.00227369]
[1642498994211,1.29636432,3165.9,3165.8,0.00170527]
[1642498994412,1.30347248,3165.9,3165.8,0.00170527]
[1642498994614,1.42977248,3165.9,3165.8,0.00170527]
[1642498995013,7.56961248,3165.9,3165.8,0.00170527]
[1642498995214,7.56961248,3165.9,3165.3,0.00454738]
[1642498995414,1.1263,3165.8,3165.2,0.00511581]
[1642498995612,0.1263,3165.8,3165.2,0.00511581]
[1642498996258,0.1263,3165.8,3165.1,0.00568423]
[1642498996860,0.1263,3165.8,3165.1,0.30568423]
[1642498997060,0.1263,3165.8,3165.1,0.00568423]
[1642498997260,0.78989,3165.7,3165.2,0.00511581]
[1642498997461,0.1263,3165.6,3165.1,0.00568423]
[1642498997661,0.1263,3165.8,3164.9,0.00682108]
[1642498997862,0.1263,3165.8,3164.7,0.00795792]
[1642498998265,0.70311205,3165.1,3164.7,0.00795792]
[1642498998462,0.157847,3165.0,3164.5,0.00909477]
[1642498998766,0.1263,3165.0,3164.5,0.00909477]
[1642498998961,0.1263,3165.0,3164.5,0.30909477]
[1642498999367,0.1263,3165.3,3164.5,0.30909477]
[1642498999565,0.79001,3165.2,3164.5,0.30909477]
[1642498999814,0.1263,3165.1,3164.5,0.30909477]
[1642499000003,0.1263,3165.4,3164.5,0.30909477]
[1642499000206,0.1263,3165.4,3164.5,0.00909477]
[1642499000403,1.19115436,3164.9,3164.5,0.00909477]
[1642499000608,1.19115436,3164.9,3163.9,4.8641]
[1642499000609,0.1263,3164.8,3164.2,0.01080004]
[1642499000807,0.04305474,3164.7,3164.2,0.01080004]
[1642499001005,4.5253006,3164.9,3164.0,0.01193689]
[1642499001006,0.04129628,3164.5,3164.0,0.01193689]
[1642499001207,0.5804,3164.4,3163.9,0.01250531]
[1642499001805,0.8804,3164.4,3163.9,0.01250531]
[1642499002408,0.79031,3164.3,3163.9,0.01250531]
[1642499002609,0.61405968,3164.2,3163.9,0.01250531]
[1642499002811,0.61405968,3164.2,3163.4,2.31530236]
[1642499002812,5.35,3164.1,3163.4,0.00073451]
[1642499003012,0.66441109,3164.0,3163.4,0.00073451]
[1642499003208,0.66441109,3164.0,3163.5,0.0022737]
[1642499003209,1.66441109,3164.0,3163.5,0.0022737]
[1642499003409,1.34764445,3163.7,3163.5,0.0022737]
[1642499003659,5.3,3163.5,3163.4,0.00073451]
[1642499003862,6.7167,3163.5,3163.4,0.00073451]
[1642499004060,8.0167,3163.5,3163.4,0.00073451]
[1642499004257,8.0167,3163.5,3162.8,1.53902132]
[1642499004258,5.3,3163.4,3162.8,1.53902132]
[1642499004460,0.59978079,3163.3,3162.8,1.53902132]
[1642499004659,1.39046079,3163.3,3162.9,0.00341054]
[1642499005059,1.39046079,3163.3,3162.6,0.00511581]
[1642499005458,1.37108,3163.3,3162.6,0.00511581]
[1642499005658,0.79061,3162.8,3162.6,0.00511581]
[1642499006459,0.454,3163.1,3162.6,0.00511581]
[1642499006664,2.40471279,3163.3,3162.6,1.5194418]
[1642499006861,2.40471279,3163.3,3162.6,1.51432599]
[1642499006862,1.61423279,3163.3,3162.6,1.51432599]
[1642499007060,1.61423279,3163.3,3162.7,0.13094738]
[1642499007509,1.61423279,3163.3,3162.9,1.26659888]
[1642499007709,3.23814435,3163.8,3163.0,0.1264]
[1642499007710,1.61423279,3163.8,3163.0,0.1264]
[1642499007909,1.61423279,3163.8,3163.0,0.12924211]
[1642499008108,0.00113684,3163.7,3163.1,0.00227369]
[1642499008510,0.00113684,3163.7,3163.4,1.22290003]
[1642499009114,0.00113684,3163.7,3163.4,2.57600003]
[1642499009318,1.61423279,3164.2,3163.4,5.78723143]
[1642499009513,0.00613711,3163.7,3163.5,1.88153684]
[1642499009712,0.00613711,3163.7,3163.6,7.14862232]
[1642499009911,0.00613711,3163.7,3163.6,5.32902232]
[1642499010112,0.00613711,3163.7,3163.6,6.32902232]
[1642499010311,0.00613711,3163.7,3163.6,7.11898232]
[1642499010713,0.00613711,3163.7,3163.6,4.02426055]
[1642499010912,0.00613711,3163.7,3163.6,5.02426055]
[1642499011157,0.00613711,3163.7,3163.6,1.454]
[1642499011358,0.00613711,3163.7,3163.6,1.0]
[1642499011756,0.00613711,3163.7,3163.6,2.69932417]
[1642499011757,1.29944722,3163.7,3163.6,2.69932417]
[1642499011963,4.92584722,3163.7,3163.6,2.69932417]
[1642499012158,6.22584722,3163.7,3163.6,2.69932417]
[1642499012356,5.92584722,3163.7,3163.6,2.69932417]
[1642499012556,1.0,3164.2,3163.7,4.15]
[1642499012757,1.0,3164.2,3163.6,2.69932417]
[1642499012758,1.0,3164.7,3164.1,0.01296986]
[1642499012958,3.24098646,3164.4,3164.2,0.1264]
[1642499013359,0.00227369,3164.3,3164.0,0.1264]
[1642499013762,1.40032564,3164.2,3164.0,0.1264]
[1642499013963,5.4264,3164.1,3164.0,0.1264]
[1642499014165,0.12753684,3164.1,3163.4,3.31456785]
[1642499014565,0.12753684,3164.1,3163.5,0.0022737]
[1642499015007,0.79036,3164.0,3163.5,0.0022737]
[1642499015207,0.1264,3163.9,3163.5,0.0022737]
[1642499015806,1.00113684,3164.1,3163.5,0.0022737]
[1642499015807,0.1264,3164.0,3163.5,0.0022737]
[1642499016007,0.1264,3164.0,3163.3,0.00341054]
[1642499016208,0.1264,3164.0,3163.1,0.00454739]
[1642499016607,0.1264,3164.0,3163.1,3.1016652]
[1642499017007,0.1264,3164.0,3163.2,0.00397897]
[1642499017212,0.12753684,3164.1,3163.2,0.00397897]
[1642499017409,0.00113684,3164.1,3163.2,0.00397897]
[1642499018209,0.58153684,3164.1,3163.2,0.00397897]
[1642499018411,1.37185684,3164.1,3163.2,0.00397897]
[1642499018656,2.37185684,3164.1,3163.2,0.00397897]
[1642499018857,0.12753684,3164.1,3163.1,0.08037897]
[1642499019059,0.12753684,3164.1,3162.9,4.6598793]
[1642499019060,0.00454739,3164.0,3162.9,4.6598793]
[1642499019257,0.1264,3163.9,3162.9,1.48375927]
[1642499019455,0.13037897,3163.9,3163.0,0.00113684]
[1642499019658,0.00341054,3163.8,3163.0,0.00113684]
[1642499019860,1.32952794,3163.2,3163.0,0.00113684]
[1642499020458,1.32952794,3163.2,3162.8,0.00227369]
[1642499020659,1.32952794,3163.2,3162.7,3.19182213]
[1642499020857,0.1264,3163.6,3162.7,3.19182213]
[1642499021059,0.1264,3163.6,3163.0,1.09018713]
[1642499021261,0.00170527,3163.5,3163.1,3.3775042]
[1642499021559,0.1264,3164.3,3163.1,3.3775042]
[1642499021560,0.00113685,3163.4,3163.2,1.0]
[1642499021758,0.00113685,3163.4,3163.3,7.01318421]
[1642499022059,0.00113685,3163.4,3163.3,7.31318421]
[1642499022326,0.00113685,3163.4,3163.3,3.95]
[1642499022514,0.00113685,3163.4,3163.1,1.4264]
[1642499022812,0.00113685,3163.4,3163.1,0.1264]
[1642499023011,0.00113685,3163.4,3163.1,2.31456785]
[1642499023916,0.1264,3163.3,3162.8,0.00227369]
[1642499024214,0.01562006,3163.2,3162.6,0.00341054]
[1642499024413,0.1264,3163.1,3162.6,0.00341054]
[1642499024614,0.1264,3163.3,3162.6,0.00341054]
[1642499025418,0.00113685,3163.4,3162.6,1.23615161]
[1642499025715,0.00113685,3163.4,3162.7,0.00284211]
[1642499026156,0.1264,3163.3,3162.7,0.00284211]
[1642499026354,0.1264,3163.3,3162.7,1.5427666]
[1642499026754,1.40397952,3162.8,3162.7,1.5427666]
[1642499027154,1.40397952,3162.8,3162.7,1.54560871]
[1642499027359,1.40397952,3162.8,3162.7,0.00284211]
[1642499027759,1.40397952,3162.8,3162.6,0.00341054]
[1642499028659,1.40397952,3162.8,3162.4,2.31456785]
[1642499028660,1.40397952,3162.8,3162.5,0.00397896]
[1642499028860,0.1264,3162.7,3162.5,0.00397896]
[1642499029359,0.1264,3162.7,3162.3,0.00511581]
[1642499029816,0.00945901,3162.6,3162.3,0.00511581]
[1642499030007,0.1264,3162.5,3162.3,0.00511581]
[1642499030216,0.1264,3162.6,3162.3,0.00511581]
[1642499030413,0.1264,3162.7,3162.6,2.59146661]
[1642499030611,3.4764,3162.7,3162.6,2.59146661]
[1642499030812,3.4764,3162.7,3162.6,2.59487715]
[1642499031013,4.4764,3162.7,3162.6,2.59487715]
[1642499031609,5.26711,3162.7,3162.6,2.59487715]
[1642499031814,5.26711,3162.7,3162.6,0.00341054]
[1642499032212,0.01723477,3162.6,3161.9,0.0073895]
[1642499033011,0.1264,3162.7,3161.9,0.0073895]
[1642499033865,0.1264,3163.1,3162.0,0.1264]
[1642499034064,3.0299,3163.3,3162.0,0.91681]
[1642499034262,0.00113685,3163.4,3162.1,0.00625265]
[1642499034461,0.00113685,3163.4,3162.2,0.1264]
[1642499034761,0.00113685,3163.4,3162.4,1.4407141]
[1642499034963,1.55180484,3162.8,3162.3,0.00511581]
[1642499035163,1.55180484,3162.8,3162.5,0.00397896]
[1642499035367,1.55180484,3162.8,3162.3,2.31968366]
[1642499035562,0.1264,3163.3,3162.3,2.31968366]
[1642499035761,0.1264,3163.3,3162.4,0.00454738]
[1642499035962,0.00113685,3163.4,3162.4,0.00454738]
[1642499036161,0.00113685,3163.4,3162.4,1.00454738]
[1642499036562,0.00113685,3163.4,3162.5,0.00397896]
[1642499036762,1.49148842,3163.2,3162.6,0.1264]
[1642499037813,1.49148842,3163.2,3162.7,2.60800425]
[1642499038211,1.49148842,3163.2,3162.8,0.00227369]
[1642499038409,1.49148842,3163.2,3162.8,0.30227369]
[1642499038811,1.49148842,3163.2,3162.9,0.00170527]
[1642499039518,0.00113685,3163.4,3162.9,0.00170527]
[1642499039712,0.00113685,3163.4,3162.8,0.00227369]
[1642499039913,0.00113685,3163.4,3162.8,2.61027794]
[1642499040112,0.00113685,3163.4,3162.9,0.1264]
[1642499040313,0.00113685,3163.4,3163.0,0.79013]
[1642499040520,0.00113685,3163.4,3163.2,1.12608557]
[1642499040713,0.00113685,3163.4,3163.3,2.2764]
[1642499041159,0.00113685,3163.4,3163.3,3.2764]
[1642499041359,0.00113685,3163.4,3163.3,4.0665]
[1642499041966,0.00113685,3163.4,3163.3,2.1264]
[1642499042161,0.00113685,3163.4,3163.3,1.1264]
[1642499042362,0.00113685,3163.4,3163.3,1.4264]
[1642499042562,0.00113685,3163.4,3163.3,2.4264]
[1642499042762,0.00113685,3163.4,3163.3,4.03440425]
[1642499042964,3.685e-05,3163.4,3163.3,7.58863042]
[1642499043168,3.685e-05,3163.4,3163.3,6.47630425]
[1642499043364,1.62015713,3164.5,3163.4,5.3]
[1642499043563,1.62015713,3164.5,3163.9,0.78977]
[1642499043763,0.00568423,3164.4,3164.0,1.5064]
[1642499043965,0.00568423,3164.4,3164.0,2.5341]
[1642499044165,0.1264,3165.3,3164.0,3.5341]
[1642499044166,0.00511581,3164.3,3164.0,3.5341]
[1642499044365,0.00511581,3164.3,3164.1,1.41140796]
[1642499044565,1.62015713,3164.8,3164.2,0.91616]
[1642499044814,1.62015713,3164.8,3164.2,1.91616]
[1642499045008,0.00738951,3164.7,3164.2,1.1264]
[1642499045210,0.00738951,3164.7,3164.2,2.1264]
[1642499045409,0.00682108,3164.6,3164.2,2.1264]
[1642499045610,0.00682108,3164.6,3164.3,0.78984]
[1642499045815,0.00625266,3164.5,3164.4,3.38]
[1642499046019,0.00625266,3164.5,3164.4,4.29615]
[1642499046210,0.00625266,3164.5,3164.4,4.5064]
[1642499046410,0.00625266,3164.5,3164.4,6.83468582]
[1642499046611,1.62015713,3165.3,3164.5,3.95]
[1642499046811,1.62015713,3165.3,3165.2,1.18424084]
[1642499047013,0.83061713,3165.3,3165.2,1.2669]
[1642499047313,3.23814435,3165.7,3165.2,4.99794822]
[1642499047314,2.43014019,3165.7,3165.2,4.99794822]
[1642499047712,2.43014019,3165.7,3165.3,1.3]
[1642499047910,2.43014019,3165.7,3165.4,3.06963336]
[1642499048113,2.43014019,3165.7,3165.4,0.3]
[1642499048312,2.43014019,3165.7,3165.3,0.68]
[1642499048765,3.23814435,3165.9,3165.3,3.28800425]
[1642499048965,1.58282826,3166.1,3165.3,3.28800425]
[1642499049166,1.58282826,3166.1,3165.3,2.90800425]
[1642499049167,0.0073895,3165.8,3165.3,2.90800425]
[1642499049368,0.0073895,3165.8,3165.3,2.60800425]
[1642499049568,1.58282826,3166.1,3165.3,2.60800425]
[1642499049569,0.13312108,3165.7,3165.3,2.60800425]
[1642499049767,0.00682108,3165.7,3165.3,2.60800425]
[1642499049972,0.13255266,3165.6,3164.8,6.03789368]
[1642499050167,0.13255266,3165.6,3164.7,1.0]
[1642499050370,0.00568423,3165.5,3164.8,3.0786384]
[1642499050568,0.00568423,3165.5,3164.7,1.0]
[1642499050569,1.24231963,3165.0,3164.7,1.6]
[1642499050767,1.24231963,3165.0,3164.9,1.0]
[1642499051170,1.24231963,3165.0,3164.9,1.6]
[1642499051569,1.24231963,3165.0,3164.9,4.18681109]
[1642499051771,2.55644019,3165.7,3164.9,4.18681109]
[1642499052168,0.00625266,3165.6,3164.9,4.18681109]
[1642499052611,0.00568423,3165.5,3165.0,2.58681109]
[1642499052812,1.21896809,3165.4,3165.0,2.58681109]
[1642499053011,1.2240839,3165.4,3165.0,2.58681109]
[1642499053210,0.00454739,3165.3,3165.0,2.58681109]
[1642499053614,0.00397896,3165.2,3165.0,2.58681109]
[1642499054014,1.21896809,3165.4,3165.0,2.58681109]
[1642499054015,2.57971054,3165.1,3165.0,2.58681109]
[1642499054414,5.42971054,3165.1,3165.0,2.58681109]
[1642499055016,5.42971054,3165.1,3164.5,0.1263]
[1642499055017,2.57971054,3165.1,3164.5,0.1263]
[1642499055217,0.1263,3165.0,3164.5,0.1263]
[1642499055418,0.12914212,3165.0,3164.5,0.1263]
[1642499055617,0.00227369,3164.9,3164.5,0.1263]
[1642499055820,0.00227369,3164.9,3164.1,0.13819997]
[1642499055821,0.00227369,3164.9,3164.2,1.31322564]
[1642499056061,2.43014019,3165.2,3164.3,0.1264]
[1642499056062,0.00170527,3164.8,3164.3,0.1264]
[1642499056266,0.00170527,3164.8,3164.4,0.78975]
[1642499056473,0.00113685,3164.7,3164.5,0.1263]
[1642499056664,0.00113685,3164.7,3164.5,1.66057706]
[1642499056864,0.00341054,3165.1,3164.6,2.7763]
[1642499057266,0.00284212,3165.0,3164.7,1.0]
[1642499057466,0.00284212,3165.0,3164.8,0.15237928]
[1642499057665,0.00227369,3164.9,3164.8,0.1263]
[1642499058267,0.00227369,3164.9,3164.8,5.11591]
[1642499058666,0.00227369,3164.9,3164.8,6.41591]
[1642499058971,0.00227369,3164.9,3164.8,3.00556]
[1642499059167,0.00227369,3164.9,3164.8,2.00556]
[1642499059370,0.00227369,3164.9,3164.8,3.00556]
[1642499059569,0.00227369,3164.9,3164.8,1.4263]
[1642499059838,0.00227369,3164.9,3164.8,2.4263]
[1642499067432,0.00227369,3164.9,3164.8,2.3]
[1642499067831,0.00227369,3164.9,3164.8,1.3]
[1642499068131,0.00227369,3164.9,3164.8,1.0]
[1642499068532,0.00227369,3164.9,3164.8,0.3]
[1642499068933,0.00227369,3164.9,3164.7,3.17925]
[1642499069134,0.00227369,3164.9,3164.7,2.55925]
[1642499069437,1.23724712,3165.6,3164.9,0.78967]
[1642499069838,0.00568423,3165.5,3164.9,0.3]
[1642499070343,0.00511581,3165.4,3164.8,1.6]
[1642499070543,0.00511581,3165.4,3164.8,1.0]
[1642499070745,0.00454739,3165.3,3164.7,2.17925]
[1642499070946,0.1263,3165.2,3164.3,6.20623684]
[1642499071164,0.13027896,3165.2,3164.3,2.21713684]
[1642499071363,0.00341054,3165.1,3164.3,2.21713684]
[1642499071761,0.00284212,3165.0,3164.3,2.21713684]
[1642499071965,1.44938581,3164.4,3164.3,1.21713684]
[1642499072164,1.44938581,3164.4,3164.3,1.00113684]
[1642499072363,1.44938581,3164.4,3164.3,0.60113684]
[1642499072567,1.44938581,3164.4,3164.3,0.30113684]
[1642499072967,0.00227369,3164.9,3164.3,0.30113684]
[1642499073366,0.00170527,3164.8,3164.3,0.30113684]
[1642499073768,0.00113685,3164.7,3164.3,0.30113684]
[1642499073971,0.00113685,3164.7,3164.3,1.30113684]
[1642499074169,1.5540748,3164.4,3164.3,1.60113684]
[1642499074813,0.1264,3165.4,3164.3,0.60113684]
[1642499075015,0.00625266,3165.6,3164.3,0.60113684]
[1642499075016,0.1263,3165.5,3164.3,0.30113684]
[1642499075217,0.00454739,3165.3,3164.3,0.30113684]
[1642499075417,0.1263,3165.2,3164.3,0.30113684]
[1642499075718,0.00341054,3165.1,3164.3,0.30113684]
[1642499075917,1.09915548,3164.7,3164.3,0.30113684]
[1642499077324,1.09915548,3164.7,3164.4,2.69919637]
[1642499077621,1.09915548,3164.7,3164.5,0.3]
[1642499078422,1.09915548,3164.7,3164.4,2.69919637]
[1642499078670,1.09915548,3164.7,3164.3,0.00113684]
[1642499078671,1.09915548,3164.7,3164.6,2.69919637]
[1642499078871,1.22545548,3164.7,3164.6,2.69919637]
[1642499079070,1.22659233,3164.7,3164.6,2.69919637]
[1642499079773,1.22659233,3164.7,3164.6,0.3]
[1642499080277,1.22659233,3164.7,3164.3,0.00113684]
[1642499080469,1.10029233,3164.7,3164.3,0.30113684]
[1642499080671,1.10029233,3164.7,3164.2,0.00170527]
[1642499081870,1.10029233,3164.7,3164.1,0.0022737]
[1642499082329,1.10029233,3164.7,3164.2,2.69932435]
[1642499082526,1.10029233,3164.7,3164.2,2.99932435]
[1642499082725,1.10029233,3164.7,3164.3,0.00113685]
[1642499083528,0.00113685,3164.7,3164.3,0.00113685]
[1642499083930,0.00113685,3164.7,3164.3,0.45613685]
[1642499084131,0.00113685,3164.7,3164.3,3.2818612]
[1642499084431,0.00113685,3164.7,3164.4,0.78972]
[1642499084632,0.00113685,3164.7,3164.6,4.01463053]
[1642499084832,0.00113685,3164.7,3164.6,4.89593053]
[1642499085030,0.00113685,3164.7,3164.6,8.22904274]
[1642499085330,0.00113685,3164.7,3164.6,8.29458627]
[1642499085531,0.00113685,3164.7,3164.6,5.99458627]
[1642499085730,0.00113685,3164.7,3164.6,25.25424627]
[1642499085929,0.00113685,3164.7,3164.6,26.55424627]
[1642499086367,0.00113685,3164.7,3164.6,26.55411069]
[1642499086572,0.00113685,3164.7,3164.6,25.73147406]
[1642499086772,0.00113685,3164.7,3164.6,28.43079841]
[1642499086975,3.6694,3165.9,3165.4,1.39564655]
[1642499087174,1.7155986,3166.1,3165.4,1.39564655]
[1642499087380,1.7155986,3166.1,3165.4,3.07434655]
[1642499087381,0.00625265,3165.8,3165.4,3.07434655]
[1642499087773,0.00568423,3165.7,3165.4,3.07434655]
[1642499088174,1.7155986,3166.1,3165.4,3.07434655]
[1642499088175,0.00511581,3165.6,3165.4,3.07434655]
[1642499088574,0.00454738,3165.5,3165.4,1.6787]
[1642499088775,0.00454738,3165.5,3165.4,1.38955]
[1642499088978,0.0073895,3165.5,3165.4,1.38955]
[1642499089375,0.0073895,3165.5,3165.4,2.97085]
[1642499089576,1.5892986,3166.4,3165.4,2.97085]
[1642499089577,1.5892986,3166.4,3165.7,0.06096674]
[1642499089821,1.5892986,3166.4,3165.8,1.37067]
[1642499090021,0.00170527,3166.3,3165.8,1.97180685]
[1642499090217,0.00170527,3166.3,3166.1,1.39902691]
[1642499090418,0.00113685,3166.2,3165.8,2.51680685]
[1642499090618,0.00113685,3166.2,3165.9,0.455]
[1642499090820,0.00113685,3166.2,3166.0,1.0]